bitfinex-derivatives/quotes_BTCF0:USTF0_20260207
["timestamp","ask_amount","ask_price","bid_price","bid_amount"]
[1770467615182,0.55868683,69766.0,69725.0,0.014357]
[1770467615479,0.55868683,69766.0,69717.0,0.351903]
[1770467615675,0.0002,69765.0,69717.0,0.351903]
[1770467615878,0.0002,69765.0,69726.0,0.36626]
[1770467616077,0.0002,69764.0,69726.0,0.36626]
[1770467616281,0.0002,69765.0,69726.0,0.351903]
[1770467616576,0.52966227,69761.0,69726.0,0.351903]
[1770467616770,0.76916227,69759.0,69715.0,0.014359]
[1770467616978,0.2395,69757.0,69715.0,0.014359]
[1770467617177,0.76916227,69757.0,69715.0,0.3673047]
[1770467617485,0.0002,69756.0,69721.0,0.3529457]
[1770467617779,0.76936227,69756.0,69708.0,0.00017302]
[1770467617978,0.76916227,69750.0,69708.0,0.00017302]
[1770467618184,0.76916227,69750.0,69711.0,0.3673057]
[1770467618380,0.76916227,69750.0,69708.0,0.00017302]
[1770467618381,0.52966227,69748.0,69708.0,0.00017302]
[1770467618577,0.14463611,69770.0,69694.0,0.14113331]
[1770467618578,0.005,69709.0,69694.0,0.14113331]
[1770467618978,0.005,69702.0,69694.0,0.14113331]
[1770467619174,0.0002,69728.0,69701.0,0.1465425]
[1770467619374,0.0002,69727.0,69701.0,0.1275425]
[1770467619679,0.52966227,69729.0,69701.0,0.1275425]
[1770467619680,0.0002,69728.0,69701.0,0.1275425]
[1770467619884,0.52966227,69744.0,69704.0,0.35161888]
[1770467620283,0.52966227,69742.0,69704.0,0.35161888]
[1770467620482,0.52966227,69742.0,69706.0,0.35161888]
[1770467621687,0.52966227,69741.0,69707.0,0.34879037]
[1770467621886,0.0002,69787.0,69701.0,0.1275425]
[1770467621887,0.52966227,69739.0,69701.0,0.1275425]
[1770467622095,0.52966227,69737.0,69701.0,0.1275425]
[1770467622675,0.52983529,69736.0,69701.0,0.1275425]
[1770467622875,0.52966227,69736.0,69701.0,0.1275425]
[1770467623079,0.00010253,69735.0,69701.0,0.1275425]
[1770467623280,0.52966227,69735.0,69701.0,0.1275425]
[1770467623675,0.52966227,69734.0,69701.0,0.1275425]
[1770467625676,0.52966227,69759.0,69702.0,0.34991166]
[1770467625890,0.52966227,69757.0,69702.0,0.34991166]
[1770467626087,0.52966227,69755.0,69702.0,0.34991166]
[1770467626388,0.52966227,69755.0,69701.0,0.1275425]
[1770467626389,0.52966227,69753.0,69704.0,0.34991166]
[1770467626590,0.52966227,69751.0,69704.0,0.34991166]
[1770467626789,0.52966227,69749.0,69704.0,0.34991166]
[1770467626988,0.52966227,69749.0,69713.0,0.34896727]
[1770467627485,0.52966227,69749.0,69715.0,0.34896727]
[1770467627690,0.52966227,69749.0,69701.0,0.1275425]
[1770467627691,0.52966227,69764.0,69719.0,0.34896727]
[1770467628093,0.52966227,69764.0,69724.0,0.36332427]
[1770467628293,0.52966227,69764.0,69726.0,0.36332427]
[1770467628592,0.52966227,69764.0,69726.0,0.34896727]
[1770467629598,0.52966227,69762.0,69713.0,0.34863777]
[1770467629784,0.52966227,69760.0,69704.0,0.34863777]
[1770467629988,0.52966227,69758.0,69716.0,0.014359]
[1770467630189,0.52966227,69758.0,69716.0,0.34863777]
[1770467630496,0.52966227,69756.0,69716.0,0.34863777]
[1770467630990,0.52966227,69756.0,69716.0,0.36299677]
[1770467631198,0.52966227,69779.0,69720.0,0.35121425]
[1770467631392,0.52966227,69777.0,69726.0,0.014357]
[1770467631593,0.14463611,69750.0,69701.0,0.1275425]
[1770467631788,0.52966227,69749.0,69701.0,0.1275425]
[1770467631995,0.52966227,69747.0,69701.0,0.1275425]
[1770467632295,0.52966227,69745.0,69701.0,0.1275425]
[1770467632488,0.1442,69783.0,69701.0,0.1275425]
[1770467632489,0.52966227,69743.0,69701.0,0.1275425]
[1770467632688,0.52966227,69743.0,69701.0,0.47875675]
[1770467632886,0.52966227,69741.0,69701.0,0.47875675]
[1770467633093,0.52966227,69739.0,69701.0,0.47875675]
[1770467634089,0.52966227,69739.0,69702.0,0.35684609]
[1770467636200,0.52966227,69769.0,69704.0,0.34218237]
[1770467636396,0.52966227,69767.0,69701.0,0.1275425]
[1770467636587,0.0002,69784.0,69701.0,0.1275425]
[1770467636588,0.52966227,69749.0,69701.0,0.1275425]
[1770467636792,0.52966227,69747.0,69701.0,0.1275425]
[1770467636992,0.52966227,69745.0,69701.0,0.1275425]
[1770467637194,0.52966227,69743.0,69701.0,0.1275425]
[1770467637399,0.52966227,69741.0,69701.0,0.1275425]
[1770467637604,0.52966227,69739.0,69701.0,0.1275425]
[1770467637798,0.52966227,69738.0,69701.0,0.1275425]
[1770467638296,0.52966227,69737.0,69701.0,0.1275425]
[1770467639009,0.52966227,69736.0,69701.0,0.1275425]
[1770467639201,0.52966227,69734.0,69701.0,0.1275425]
[1770467640199,0.52966227,69732.0,69701.0,0.1275425]
[1770467640397,0.52966227,69730.0,69701.0,0.1275425]
[1770467640998,0.52966227,69729.0,69701.0,0.1275425]
[1770467641692,0.52966227,69727.0,69668.0,0.46963932]
[1770467641904,0.52966227,69725.0,69687.0,0.14490591]
[1770467642200,0.52966227,69723.0,69687.0,0.14490591]
[1770467642404,0.52966227,69734.0,69694.0,0.68409496]
[1770467642603,0.52966227,69732.0,69694.0,0.68409496]
[1770467642804,0.52966227,69730.0,69694.0,0.68409496]
[1770467643391,0.52982677,69729.0,69694.0,0.68409496]
[1770467643592,0.00012935,69728.0,69694.0,0.14256123]
[1770467643800,0.52966227,69727.0,69687.0,0.14490591]
[1770467643994,0.52966227,69727.0,69687.0,0.68643964]
[1770467644305,0.52966227,69725.0,69687.0,0.68643964]
[1770467644507,0.52966227,69725.0,69694.0,0.14298578]
[1770467644698,0.52966227,69724.0,69694.0,0.14298578]
[1770467645098,0.52966227,69723.0,69687.0,0.14490591]
[1770467645295,0.52966227,69721.0,69687.0,0.14490591]
[1770467645501,0.52966227,69719.0,69687.0,0.14490591]
[1770467645700,0.52966227,69717.0,69687.0,0.14490591]
[1770467645997,0.56741387,69715.0,69687.0,0.14490591]
[1770467646506,0.56741387,69713.0,69687.0,0.14490591]
[1770467647002,0.56741387,69736.0,69695.0,0.58673743]
[1770467647415,0.56741387,69736.0,69695.0,0.57237443]
[1770467647596,0.56741387,69734.0,69699.0,0.57237443]
[1770467647799,0.56741387,69747.0,69705.0,0.57237443]
[1770467648110,0.00014054,69746.0,69705.0,0.57237443]
[1770467648305,1.57722295,69765.0,69709.0,0.57237443]
[1770467648306,0.56741387,69764.0,69709.0,0.57237443]
[1770467648501,0.56741387,69764.0,69723.0,0.57237443]
[1770467648708,0.00010192,69763.0,69724.0,0.57237443]
[1770467648898,0.56741387,69761.0,69724.0,0.57237443]
[1770467649100,0.00012346,69760.0,69711.0,0.57237443]
[1770467649304,0.56756776,69759.0,69711.0,0.57237443]
[1770467649606,0.20771354,69770.0,69695.0,0.57237443]
[1770467649607,0.56741387,69757.0,69695.0,0.57237443]
[1770467649906,0.56741387,69755.0,69708.0,0.57237443]
[1770467650208,0.53393656,69749.0,69708.0,0.57237443]
[1770467650409,0.53393656,69747.0,69694.0,0.15555164]
[1770467650609,0.53393656,69745.0,69697.0,0.56268377]
[1770467650805,0.53393656,69743.0,69699.0,0.56268377]
[1770467651003,0.53393656,69743.0,69702.0,0.56268377]
[1770467651203,0.53393656,69741.0,69702.0,0.56268377]
[1770467651511,0.53393656,69739.0,69702.0,0.56268377]
[1770467651712,0.53393656,69737.0,69702.0,0.56268377]
[1770467652008,0.53393656,69736.0,69702.0,0.56268377]
[1770467652206,0.53393656,69729.0,69694.0,0.14118864]
[1770467652407,0.53393656,69727.0,69694.0,0.14118864]
[1770467652597,0.14431854,69730.0,69694.0,0.14118864]
[1770467652598,0.53393656,69725.0,69694.0,0.14118864]
[1770467652802,0.53393656,69723.0,69678.0,0.56268377]
[1770467653106,0.53393656,69721.0,69667.0,0.56268377]
[1770467653303,0.53393656,69719.0,69667.0,0.56268377]
[1770467653497,0.53393656,69717.0,69667.0,0.70289114]
[1770467653702,0.53393656,69715.0,69667.0,0.56268377]
[1770467654016,0.53393656,69713.0,69675.0,0.56268377]
[1770467654210,0.00011604,69712.0,69675.0,0.56268377]
[1770467654505,0.53393656,69713.0,69675.0,0.56268377]
[1770467654711,0.56493402,69742.0,69674.0,0.14287704]
[1770467654712,0.53393656,69711.0,69674.0,0.14287704]
[1770467654901,0.53393656,69739.0,69675.0,0.56268377]
[1770467655108,0.53393656,69737.0,69675.0,0.56268377]
[1770467655306,0.53393656,69735.0,69675.0,0.56268377]
[1770467655507,0.53393656,69733.0,69677.0,0.56268377]
[1770467655706,0.53393656,69731.0,69677.0,0.56268377]
[1770467655912,0.53393656,69729.0,69677.0,0.56268377]
[1770467656108,0.53393656,69727.0,69677.0,0.56268377]
[1770467656307,0.53393656,69725.0,69677.0,0.56268377]
[1770467656508,0.53393656,69723.0,69677.0,0.56268377]
[1770467656711,0.53393656,69721.0,69677.0,0.56268377]
[1770467656904,0.14431854,69740.0,69677.0,0.56268377]
[1770467656905,0.53393656,69720.0,69677.0,0.56268377]
[1770467657104,0.53393656,69719.0,69677.0,0.56268377]
[1770467657607,0.53393656,69719.0,69679.0,0.56268377]
[1770467657904,0.00011254,69718.0,69679.0,0.56268377]
[1770467658110,0.53393656,69719.0,69679.0,0.56268377]
[1770467658312,0.53393656,69719.0,69674.0,0.14287704]
[1770467658313,0.53393656,69719.0,69684.0,0.56268377]
[1770467658905,0.14431854,69740.0,69674.0,0.14287704]
[1770467658906,0.53393656,69717.0,69674.0,0.14287704]
[1770467659209,0.14431854,69740.0,69675.0,0.56268377]
[1770467659210,0.53393656,69715.0,69675.0,0.56268377]
[1770467659613,0.53393656,69713.0,69674.0,0.14287704]
[1770467659807,0.53393656,69711.0,69674.0,0.14287704]
[1770467660010,0.53393656,69709.0,69674.0,0.14287704]
[1770467660211,0.53393656,69707.0,69674.0,0.14287704]
[1770467660508,0.53393656,69705.0,69674.0,0.14287704]
[1770467660812,0.53393656,69703.0,69674.0,0.14287704]
[1770467661008,0.53393656,69701.0,69674.0,0.14287704]
[1770467661212,0.53393656,69701.0,69667.0,0.14070832]
[1770467661213,0.53393656,69699.0,69667.0,0.14070832]
[1770467661415,0.53393656,69697.0,69667.0,0.14070832]
[1770467661615,0.53393656,69695.0,69674.0,0.14406512]
[1770467662314,0.53393656,69693.0,69674.0,0.14406512]
[1770467662616,0.53393656,69693.0,69662.0,0.0001093]
[1770467663112,0.53393656,69691.0,69662.0,0.0001093]
[1770467663317,0.56493402,69711.0,69663.0,0.56268377]
[1770467663318,0.53393656,69710.0,69663.0,0.56268377]
[1770467663504,0.53393656,69708.0,69674.0,0.14587279]
[1770467663709,0.53393656,69706.0,69674.0,0.14587279]
[1770467663910,0.53393656,69704.0,69674.0,0.14587279]
[1770467664115,0.53393656,69702.0,69674.0,0.14587279]
[1770467664312,0.53393656,69700.0,69674.0,0.14587279]
[1770467664513,0.53393656,69698.0,69674.0,0.14587279]
[1770467664708,0.14431854,69720.0,69667.0,0.14568606]
[1770467664709,0.53393656,69696.0,69667.0,0.14568606]
[1770467664918,0.53393656,69694.0,69667.0,0.14568606]
[1770467665112,0.53393656,69694.0,69662.0,0.0001093]
[1770467665113,0.53393656,69692.0,69662.0,0.0001093]
[1770467665313,0.53393656,69690.0,69639.0,0.56268377]
[1770467665527,0.53393656,69688.0,69666.0,0.14137272]
[1770467665711,0.53393656,69687.0,69666.0,0.14137272]
[1770467665912,0.53393656,69686.0,69659.0,0.14490668]
[1770467666111,0.53393656,69684.0,69659.0,0.14490668]
[1770467666314,0.14431854,69700.0,69659.0,0.14490668]
[1770467666315,0.53393656,69682.0,69659.0,0.14490668]
[1770467666613,0.53393656,69680.0,69659.0,0.14490668]
[1770467666814,0.53393656,69678.0,69659.0,0.14490668]
[1770467667016,0.53393656,69677.0,69659.0,0.14490668]
[1770467667215,0.53393656,69677.0,69644.0,0.56268377]
[1770467667414,0.53393656,69676.0,69645.0,0.14437544]
[1770467667613,0.53393656,69674.0,69645.0,0.14437544]
[1770467667824,0.53393656,69672.0,69645.0,0.14437544]
[1770467668015,0.14431854,69680.0,69645.0,0.14437544]
[1770467668316,0.53393656,69670.0,69645.0,0.14437544]
[1770467668525,0.53393656,69668.0,69645.0,0.14437544]
[1770467668722,0.53393656,69666.0,69633.0,0.56268377]
[1770467668923,0.53393656,69664.0,69633.0,0.56268377]
[1770467669222,0.53393656,69662.0,69641.0,0.14188334]
[1770467669417,0.14431854,69680.0,69634.0,0.14362221]
[1770467669418,0.53393656,69661.0,69634.0,0.14362221]
[1770467669813,0.53393656,69660.0,69641.0,0.14064341]
[1770467670012,0.56493402,69699.0,69641.0,0.70332718]
[1770467670013,0.53393656,69679.0,69641.0,0.70332718]
[1770467670217,0.53393656,69677.0,69641.0,0.70332718]
[1770467670420,0.53393656,69676.0,69641.0,0.70332718]
[1770467671022,0.53393656,69699.0,69646.0,0.56268377]
[1770467671324,0.53393656,69697.0,69654.0,0.56268377]
[1770467671522,0.53393656,69695.0,69654.0,0.56268377]
[1770467671722,0.53393656,69695.0,69654.0,0.56088377]
[1770467672227,0.53393656,69693.0,69654.0,0.56088377]
[1770467673017,0.56493402,69732.0,69642.0,0.56268377]
[1770467673018,0.53393656,69689.0,69642.0,0.56268377]
[1770467673214,0.53393656,69687.0,69641.0,0.14064341]
[1770467673431,0.53393656,69685.0,69641.0,0.14064341]
[1770467673727,0.53393656,69683.0,69641.0,0.14064341]
[1770467673928,0.53393656,69681.0,69641.0,0.14064341]
[1770467674222,0.53393656,69679.0,69641.0,0.70332718]
[1770467674628,0.00015454,69678.0,69641.0,0.70332718]
[1770467674812,0.53393656,69679.0,69641.0,0.70332718]
[1770467675524,0.53393656,69677.0,69641.0,0.70332718]
[1770467675725,0.53393656,69675.0,69641.0,0.14064341]
[1770467675925,0.53393656,69675.0,69642.0,0.55927902]
[1770467676121,0.53393656,69675.0,69641.0,0.14064341]
[1770467676425,0.55742523,69673.0,69641.0,0.14064341]
[1770467676619,0.55742523,69671.0,69641.0,0.14064341]
[1770467676825,0.55742523,69669.0,69634.0,0.14362221]
[1770467677013,0.55742523,69667.0,69634.0,0.14362221]
[1770467677217,0.55742523,69665.0,69634.0,0.14362221]
[1770467677412,0.55742523,69663.0,69634.0,0.14362221]
[1770467677618,0.55742523,69662.0,69634.0,0.14362221]
[1770467679723,0.55742523,69662.0,69641.0,0.14164947]
[1770467681226,0.14431854,69690.0,69642.0,0.55927902]
[1770467681227,0.55742523,69677.0,69642.0,0.55927902]
[1770467681722,0.55742523,69675.0,69642.0,0.55927902]
[1770467682424,0.55742523,69673.0,69642.0,0.55927902]
[1770467683423,0.00012858,69672.0,69642.0,0.55927902]
[1770467683631,0.55742523,69673.0,69642.0,0.55927902]
[1770467684023,0.55742523,69672.0,69642.0,0.55927902]
[1770467684823,0.55742523,69672.0,69641.0,0.14164947]
[1770467685028,0.55742523,69670.0,69641.0,0.14164947]
[1770467685227,0.55742523,69669.0,69641.0,0.14164947]
[1770467686731,0.55742523,69668.0,69641.0,0.14164947]
[1770467686927,0.55742523,69666.0,69641.0,0.14164947]
[1770467687126,0.14431854,69690.0,69641.0,0.14164947]
[1770467687127,0.55742523,69664.0,69641.0,0.14164947]
[1770467687425,0.55742523,69662.0,69641.0,0.14164947]
[1770467688018,0.55742523,69661.0,69641.0,0.14164947]
[1770467688225,0.55742523,69660.0,69641.0,0.14164947]
[1770467688419,0.55742523,69659.0,69641.0,0.14164947]
[1770467688626,0.55742523,69658.0,69641.0,0.14164947]
[1770467689426,0.55742523,69656.0,69634.0,0.14362221]
[1770467689627,0.55742523,69655.0,69634.0,0.14362221]
[1770467689823,0.55742523,69653.0,69634.0,0.14362221]
[1770467690019,0.14431854,69670.0,69611.0,0.55927902]
[1770467690020,0.55742523,69651.0,69611.0,0.55927902]
[1770467690222,0.55742523,69651.0,69633.0,0.14618287]
[1770467690424,0.55742523,69662.0,69633.0,0.14618287]
[1770467690732,0.55742523,69661.0,69633.0,0.14618287]
[1770467691431,0.55742523,69660.0,69633.0,0.14618287]
[1770467691629,0.55742523,69674.0,69634.0,0.55927902]
[1770467691831,0.55742523,69672.0,69634.0,0.55927902]
[1770467692030,0.55742523,69670.0,69634.0,0.55927902]
[1770467692233,0.56493402,69680.0,69634.0,0.55927902]
[1770467692234,0.55742523,69668.0,69634.0,0.55927902]
[1770467692431,0.56493402,69680.0,69633.0,0.14618287]
[1770467692432,0.55742523,69666.0,69633.0,0.14618287]
[1770467692625,0.55742523,69664.0,69633.0,0.14618287]
[1770467692826,0.55742523,69662.0,69633.0,0.14618287]
[1770467693028,0.00017302,69661.0,69633.0,0.14618287]
[1770467693331,0.55742523,69660.0,69634.0,0.55927902]
[1770467693536,0.71943898,69681.0,69634.0,0.55927902]
[1770467693537,0.55742523,69671.0,69634.0,0.55927902]
[1770467693834,0.55742523,69669.0,69634.0,0.55927902]
[1770467694026,0.55742523,69669.0,69633.0,0.14618287]
[1770467694227,0.55742523,69667.0,69633.0,0.14618287]
[1770467694432,0.55742523,69665.0,69633.0,0.14618287]
[1770467694636,0.55742523,69663.0,69633.0,0.14618287]
[1770467695026,0.55742523,69662.0,69633.0,0.14618287]
[1770467695531,0.55742523,69661.0,69633.0,0.14618287]
[1770467695736,0.55742523,69659.0,69633.0,0.14618287]
[1770467696329,0.0001053,69658.0,69633.0,0.14618287]
[1770467696531,0.55742523,69659.0,69633.0,0.14618287]
[1770467696731,0.00017302,69658.0,69633.0,0.14618287]
[1770467697035,0.55742523,69659.0,69633.0,0.14618287]
[1770467697427,1.12235925,69672.0,69634.0,0.55927902]
[1770467697628,0.55742523,69671.0,69634.0,0.55927902]
[1770467697828,0.55742523,69669.0,69634.0,0.55927902]
[1770467698029,0.55742523,69667.0,69634.0,0.55927902]
[1770467698632,0.55742523,69665.0,69634.0,0.55927902]
[1770467698833,0.55742523,69663.0,69634.0,0.55927902]
[1770467700336,0.55742523,69676.0,69634.0,0.55927902]
[1770467700534,0.55742523,69676.0,69641.0,0.55927902]
[1770467700943,0.55742523,69676.0,69645.0,0.55927902]
[1770467701539,0.55742523,69688.0,69645.0,0.55927902]
[1770467701742,0.55742523,69686.0,69645.0,0.55927902]
[1770467701939,0.55742523,69684.0,69645.0,0.55927902]
[1770467702243,0.55742523,69682.0,69645.0,0.55927902]
[1770467702435,0.55742523,69680.0,69645.0,0.55927902]
[1770467702640,0.00013269,69679.0,69645.0,0.55927902]
[1770467702836,0.14431854,69690.0,69635.0,0.55927902]
[1770467702837,0.55742523,69678.0,69635.0,0.55927902]
[1770467703031,0.55742523,69669.0,69633.0,0.14618287]
[1770467703541,0.55742523,69653.0,69633.0,0.14618287]
[1770467704337,0.55742523,69653.0,69633.0,0.12136389]
[1770467704538,0.55742523,69651.0,69626.0,0.14687282]
[1770467704738,0.02,69634.0,69626.0,0.14687282]
[1770467704945,0.55742523,69651.0,69633.0,0.14465916]
[1770467705343,0.55742523,69651.0,69612.0,0.55943329]
[1770467705539,0.55742523,69649.0,69612.0,0.00015427]
[1770467705945,0.55460834,69647.0,69612.0,0.00015427]
[1770467706145,0.14431854,69650.0,69612.0,0.00015427]
[1770467706349,0.02,69613.0,69612.0,0.00015427]
[1770467706551,0.02,69613.0,69603.0,0.14281536]
[1770467707350,0.02,69613.0,69596.0,0.14710837]
[1770467707847,0.02,69613.0,69596.0,0.14530837]
[1770467708045,0.02,69597.0,69596.0,0.14530837]
[1770467708247,0.00011259,69597.0,69579.0,0.54981612]
[1770467708456,0.55460834,69616.0,69579.0,0.54981612]
[1770467708950,0.55460834,69616.0,69579.0,0.54481612]
[1770467709146,0.55460834,69616.0,69584.0,0.54981612]
[1770467709542,0.55460834,69614.0,69584.0,0.52981612]
[1770467710055,0.56493402,69640.0,69602.0,0.56638643]
[1770467710056,0.53185865,69639.0,69602.0,0.56638643]
[1770467710345,0.53185865,69639.0,69584.0,0.56638643]
[1770467710550,0.53185865,69639.0,69583.0,0.14672361]
[1770467710551,0.53185865,69639.0,69593.0,0.56638643]
[1770467711544,0.53185865,69639.0,69583.0,0.14672361]
[1770467711545,0.53185865,69639.0,69598.0,0.56638643]
[1770467711748,0.53185865,69649.0,69607.0,0.56638643]
[1770467713341,0.53185865,69659.0,69609.0,0.56638643]
[1770467713548,0.53185865,69659.0,69643.0,0.14587395]
[1770467713742,0.53185865,69659.0,69650.0,0.1463951]
[1770467713951,0.53185865,69659.0,69603.0,0.56638643]
[1770467714152,0.53185865,69646.0,69610.0,0.01438]
[1770467714454,0.53185865,69666.0,69647.0,0.14212365]
[1770467714646,0.53185865,69666.0,69640.0,0.14020424]
[1770467715448,0.53185865,69666.0,69640.0,0.11696422]
[1770467715647,0.02,69641.0,69640.0,0.09696422]
[1770467716255,0.71943898,69684.0,69640.0,0.09696422]
[1770467716256,0.53185865,69668.0,69640.0,0.09696422]
[1770467716551,0.56493402,69675.0,69647.0,0.14683418]
[1770467716748,0.53185865,69678.0,69647.0,0.14683418]
[1770467716944,0.53185865,69678.0,69648.0,0.56638643]
[1770467717150,0.53185865,69688.0,69648.0,0.56638643]
[1770467717853,0.53185865,69688.0,69647.0,0.14683418]
[1770467718252,0.53185865,69688.0,69648.0,0.56638643]
[1770467718552,0.53185865,69702.0,69648.0,0.56638643]
[1770467718756,0.53185865,69702.0,69655.0,0.56638643]
[1770467719055,0.53185865,69702.0,69662.0,0.56638643]
[1770467719255,0.53185865,69730.0,69665.0,0.56638643]
[1770467719854,0.53185865,69730.0,69670.0,0.56638643]
[1770467720060,0.53185865,69719.0,69670.0,0.56638643]
[1770467722958,0.53185865,69719.0,69653.0,0.56638643]
[1770467724256,0.53185865,69719.0,69661.0,0.56638643]
[1770467725260,0.53185865,69719.0,69663.0,0.56638643]
[1770467727853,0.53185865,69719.0,69663.0,0.58075643]
[1770467728054,0.53185865,69719.0,69650.0,0.14472923]
[1770467728255,0.53185865,69719.0,69668.0,0.56638643]
[1770467728454,0.53185865,69719.0,69648.0,0.56638643]
[1770467728759,0.53185865,69719.0,69659.0,0.56638643]
[1770467729664,0.02,69660.0,69659.0,0.56638643]
[1770467729863,0.53185865,69694.0,69659.0,0.56638643]
[1770467730255,0.53185865,69694.0,69648.0,0.56638643]
[1770467730460,0.02,69660.0,69648.0,0.56638643]
[1770467730857,0.53185865,69683.0,69648.0,0.56638643]
[1770467731058,0.53185865,69683.0,69647.0,0.14683418]
[1770467731258,0.53185865,69683.0,69648.0,0.56638643]
[1770467731462,0.53185865,69683.0,69647.0,0.14683418]
[1770467731671,0.53185865,69679.0,69640.0,0.09696422]
[1770467732265,0.53185865,69664.0,69640.0,0.09696422]
[1770467732965,0.53185865,69659.0,69599.0,0.56338643]
[1770467733869,0.53185865,69675.0,69637.0,0.56638643]
[1770467739474,0.56151414,69695.0,69637.0,0.56638643]
[1770467740368,0.56151414,69693.0,69637.0,0.56638643]
[1770467741071,0.56151414,69676.0,69637.0,0.56638643]
[1770467742175,0.56151414,69676.0,69636.0,0.14235776]
[1770467742972,0.56151414,69666.0,69636.0,0.14235776]
[1770467743171,0.56151414,69666.0,69636.0,0.08235776]
[1770467743374,0.56151414,69666.0,69629.0,0.14281749]
[1770467743573,0.02,69637.0,69629.0,0.14281749]
[1770467743873,0.56151414,69668.0,69636.0,0.70638558]
[1770467744368,0.56151414,69679.0,69636.0,0.70638558]
[1770467751362,0.56151414,69686.0,69636.0,0.70638558]
[1770467751770,0.56493402,69687.0,69650.0,0.56534385]
[1770467752072,0.71943898,69699.0,69653.0,0.56534385]
[1770467752468,0.56151414,69698.0,69653.0,0.56534385]
[1770467753574,0.56151414,69698.0,69640.0,0.14472923]
[1770467753575,0.56151414,69698.0,69656.0,0.56534385]
[1770467753869,0.56493402,69705.0,69658.0,0.56534385]
[1770467754069,0.56493402,69705.0,69660.0,0.56534385]
[1770467754267,1.12644816,69705.0,69660.0,0.56534385]
[1770467754471,0.56151414,69705.0,69660.0,0.56534385]
[1770467760773,0.56493402,69704.0,69660.0,0.56534385]
[1770467760974,0.56151414,69703.0,69660.0,0.56534385]
[1770467761574,0.56151414,69700.0,69640.0,0.56534385]
[1770467762282,0.56151414,69700.0,69644.0,0.56534385]
[1770467762483,0.56151414,69698.0,69644.0,0.56534385]
[1770467763090,0.56151414,69677.0,69636.0,0.14104173]
[1770467764785,0.56151414,69677.0,69636.0,0.06104173]
[1770467764786,0.02,69637.0,69636.0,0.06104173]
[1770467765885,0.02,69637.0,69614.0,0.56534385]
[1770467766281,0.02,69637.0,69629.0,0.12091686]
[1770467766587,0.02,69630.0,69629.0,0.12091686]
[1770467767085,0.02,69630.0,69603.0,0.56633747]
[1770467767283,0.02,69630.0,69614.0,0.14379285]
[1770467767982,0.02,69630.0,69593.0,0.56633747]
[1770467767983,0.55924069,69629.0,69593.0,0.56633747]
[1770467768176,0.55924069,69629.0,69611.0,0.14372724]
[1770467768377,0.02,69604.0,69589.0,0.56633747]
[1770467768583,0.55924069,69620.0,69599.0,0.14022904]
[1770467768881,0.55924069,69620.0,69592.0,0.14634033]
[1770467771088,0.55924069,69620.0,69574.0,0.52798132]
[1770467772392,0.55924069,69620.0,69593.0,0.14468478]
[1770467773186,0.55924069,69620.0,69586.0,0.12444031]
[1770467774192,0.55924069,69620.0,69593.0,0.14361851]
[1770467775400,0.54843612,69643.0,69594.0,0.52798132]
[1770467777503,0.54843612,69627.0,69594.0,0.52798132]
[1770467778999,0.54843612,69627.0,69593.0,0.14361851]
[1770467779502,0.54843612,69615.0,69593.0,0.14361851]
[1770467780300,0.54843612,69615.0,69586.0,0.12444031]
[1770467780801,0.006,69587.0,69586.0,0.12444031]
[1770467781104,0.54843612,69615.0,69586.0,0.12444031]
[1770467781304,0.54843612,69613.0,69575.0,0.52798132]
[1770467781700,0.54843612,69611.0,69587.0,0.14376243]
[1770467782097,0.01411259,69610.0,69587.0,0.14376243]
[1770467782295,0.01411259,69610.0,69588.0,0.52798132]
[1770467782500,0.01411259,69609.0,69588.0,0.52798132]
[1770467782704,0.01411259,69620.0,69588.0,0.52798132]
[1770467782898,0.54843612,69650.0,69593.0,0.52798132]
[1770467783202,0.54843612,69650.0,69595.0,0.52798132]
[1770467783408,0.54843612,69650.0,69597.0,0.52798132]
[1770467783607,0.54843612,69649.0,69597.0,0.52798132]
[1770467783905,0.54843612,69649.0,69600.0,0.52798132]
[1770467785407,0.54843612,69649.0,69600.0,0.54236432]
[1770467786200,0.54843612,69649.0,69604.0,0.52798132]
[1770467786405,0.54843612,69689.0,69624.0,0.52798132]
[1770467786606,0.54843612,69669.0,69624.0,0.52798132]
[1770467787408,0.14481256,69670.0,69624.0,0.52798132]
[1770467787409,0.54843612,69657.0,69624.0,0.52798132]
[1770467788198,0.54843612,69689.0,69624.0,0.52798132]
[1770467789506,0.54843612,69673.0,69624.0,0.52798132]
[1770467790405,0.54843612,69673.0,69654.0,0.14592326]
[1770467791399,0.54543612,69701.0,69655.0,0.52798132]
[1770467791804,0.54543612,69701.0,69657.0,0.52798132]
[1770467792215,0.0002,69714.0,69662.0,0.52798132]
[1770467792216,0.54843612,69711.0,69662.0,0.52798132]
[1770467792403,0.54843612,69711.0,69665.0,0.52798132]
[1770467793202,0.54843612,69739.0,69687.0,0.52798132]
[1770467793399,0.54843612,69739.0,69664.0,0.07185]
[1770467793400,0.54543612,69739.0,69691.0,0.52798132]
[1770467793906,0.54843612,69755.0,69693.0,0.52798132]
[1770467794104,0.54843612,69755.0,69714.0,0.52798132]
[1770467795009,0.54843612,69755.0,69725.0,0.52798132]
[1770467795206,0.54843612,69755.0,69724.0,0.14087608]
[1770467795516,0.54843612,69755.0,69696.0,0.52798132]
[1770467795706,0.54843612,69741.0,69696.0,0.52798132]
[1770467796021,0.02,69718.0,69696.0,0.52798132]
[1770467796207,0.0002,69742.0,69709.0,0.14378361]
[1770467796407,0.57021339,69741.0,69710.0,0.52863732]
[1770467797212,0.57021339,69767.0,69710.0,0.52863732]
[1770467801312,0.57021339,69748.0,69710.0,0.52863732]
[1770467802310,0.57021339,69748.0,69702.0,0.14309448]
[1770467802617,0.02,69711.0,69702.0,0.14309448]
[1770467803006,0.57021339,69731.0,69702.0,0.14309448]
[1770467805824,0.57021339,69751.0,69710.0,0.54863732]
[1770467806717,0.57021339,69751.0,69709.0,0.14674524]
[1770467807013,0.0002,69767.0,69710.0,0.54863732]
[1770467807014,0.57021339,69766.0,69710.0,0.54863732]
[1770467807418,0.57021339,69766.0,69710.0,0.52863732]
[1770467807621,0.57021339,69766.0,69712.0,0.54863732]
[1770467809113,0.57021339,69766.0,69713.0,0.014359]
[1770467809315,0.57021339,69766.0,69714.0,0.54863732]
[1770467809716,0.57021339,69766.0,69717.0,0.54863732]
[1770467809920,0.0002,69773.0,69717.0,0.54863732]
[1770467810119,0.57021339,69777.0,69725.0,0.54863732]
[1770467810315,0.57021339,69777.0,69709.0,0.14674524]
[1770467810316,0.57021339,69777.0,69735.0,0.54863732]
[1770467810523,0.57021339,69791.0,69735.0,0.54863732]
[1770467810720,0.57021339,69791.0,69737.0,0.54863732]
[1770467811023,0.57021339,69791.0,69743.0,0.54863732]
[1770467811415,0.57021339,69791.0,69745.0,0.54863732]
[1770467812223,0.0002,69793.0,69745.0,0.56299032]
[1770467812522,0.57021339,69802.0,69745.0,0.56299032]
[1770467813020,0.57021339,69789.0,69745.0,0.54863732]
[1770467813222,0.57021339,69789.0,69733.0,0.54863732]
[1770467813520,0.57041339,69764.0,69733.0,0.54863732]
[1770467813822,0.57041339,69764.0,69711.0,0.54863732]
[1770467813823,0.02,69734.0,69711.0,0.54863732]
[1770467814811,0.57021339,69753.0,69711.0,0.54863732]